bitfinex-derivatives/quotes_SOLF0:USTF0_20220106
["timestamp","ask_amount","ask_price","bid_price","bid_amount"]
[1641463381550,59.32958,147.67,147.56,38.26446976]
[1641463381752,59.32958,147.67,147.57,38.26446976]
[1641463381951,55.32958,147.67,147.57,38.26446976]
[1641463382553,55.32958,147.67,147.61,4.0]
[1641463383154,6.76727347,147.68,147.58,31.66479]
[1641463383356,68.6145,147.7,147.6,4.0]
[1641463383555,68.6145,147.7,147.61,4.0]
[1641463383954,72.6145,147.7,147.59,45.08750688]
[1641463384154,68.6145,147.7,147.6,4.0]
[1641463385055,96.27929,147.7,147.59,45.08750688]
[1641463385254,4.0,147.68,147.59,45.08750688]
[1641463385654,103.04541876,147.7,147.59,45.08750688]
[1641463385854,12.3090235,147.69,147.59,6.82303712]
[1641463386254,12.3090235,147.69,147.6,4.0]
[1641463386455,12.3090235,147.69,147.62,4.0]
[1641463386957,27.66479,147.7,147.62,27.66479]
[1641463387154,38.26446976,147.72,147.65,4.0]
[1641463387555,38.26446976,147.72,147.69,4.0]
[1641463387756,38.26446976,147.72,147.69,10.261]
[1641463388055,38.26446976,147.75,147.69,10.261]
[1641463388957,38.26446976,147.75,147.69,37.92579]
[1641463389156,27.66479,147.77,147.69,37.92579]
[1641463389757,12.29808399,147.78,147.7,4.0]
[1641463389957,38.26446976,147.79,147.73,4.0]
[1641463390156,38.26446976,147.79,147.75,4.0]
[1641463391657,38.26446976,147.83,147.74,27.66479]
[1641463391858,38.26446976,147.83,147.74,20.22945816]
[1641463392059,38.26446976,147.83,147.73,5.123]
[1641463392060,42.26446976,147.83,147.73,5.123]
[1641463392257,4.0,147.78,147.73,5.123]
[1641463392462,4.0,147.82,147.73,5.123]
[1641463392658,38.26446976,147.83,147.73,5.123]
[1641463392957,38.26446976,147.83,147.76,27.66479]
[1641463393157,38.26446976,147.83,147.76,32.74279]
[1641463394561,12.29259835,147.84,147.77,4.0]
[1641463394959,12.29259835,147.84,147.79,27.66479]
[1641463395159,12.29259835,147.84,147.79,32.28979]
[1641463395859,12.29259835,147.85,147.79,32.28979]
[1641463396459,16.29259835,147.85,147.76,32.74279]
[1641463396659,10.75995403,147.84,147.76,5.078]
[1641463396859,4.0,147.83,147.76,5.078]
[1641463397060,27.66479,147.81,147.76,5.078]
[1641463398060,103.02166976,147.86,147.76,5.078]
[1641463398061,12.29259835,147.8,147.76,5.078]
[1641463398262,9.84002781,147.8,147.76,9.078]
[1641463398461,9.84002781,147.8,147.76,5.078]
[1641463399662,27.66479,147.81,147.76,5.078]
[1641463400262,38.26446976,147.82,147.76,5.078]
[1641463401366,38.26446976,147.83,147.77,4.0]
[1641463401564,38.26446976,147.83,147.78,4.0]
[1641463401864,38.26446976,147.83,147.77,21.05291906]
[1641463402065,38.26446976,147.83,147.76,5.078]
[1641463402265,38.26446976,147.83,147.77,4.0]
[1641463402467,38.26446976,147.83,147.78,4.0]
[1641463403066,123.32970277,147.87,147.79,4.0]
[1641463403266,65.92925976,147.87,147.79,4.0]
[1641463404066,27.66479,147.87,147.79,4.0]
[1641463404266,27.66479,147.87,147.77,44.71770906]
[1641463404267,38.26446976,147.88,147.8,4.0]
[1641463404466,38.26446976,147.88,147.84,4.0]
[1641463404667,38.26446976,147.88,147.84,6.459]
[1641463405569,38.26446976,147.9,147.84,6.459]
[1641463406369,38.26446976,147.9,147.89,4.0]
[1641463406569,38.26446976,147.93,147.87,21.05291906]
[1641463406768,38.26446976,147.93,147.86,4.0]
[1641463407267,38.26446976,147.93,147.88,27.66479]
[1641463408069,38.26446976,147.94,147.88,27.66479]
[1641463408270,38.26446976,147.94,147.89,4.0]
[1641463408670,57.40044301,147.99,147.92,4.0]
[1641463408870,57.40044301,147.99,147.94,4.0]
[1641463409070,57.40044301,147.99,147.94,27.66479]
[1641463409271,57.40044301,147.99,147.92,5.182]
[1641463409673,27.66479,148.0,147.92,5.182]
[1641463409871,27.66479,148.0,147.92,9.182]
[1641463410072,27.66479,148.0,147.92,5.182]
[1641463410972,27.66479,148.0,147.9,14.32214292]
[1641463412472,27.66479,148.0,147.89,18.32214292]
[1641463413071,27.66479,148.0,147.92,17.05291906]
[1641463413270,27.66479,148.0,147.92,7.137]
[1641463413871,27.66479,148.0,147.92,24.18991906]
[1641463414073,27.66479,148.0,147.92,7.137]
[1641463414479,27.66479,148.0,147.91,14.32214292]
[1641463414674,31.66479,148.0,147.91,14.32214292]
[1641463414875,27.66479,148.0,147.91,14.32214292]
[1641463415277,4.0,147.99,147.91,14.32214292]
[1641463415876,31.66479,148.0,147.88,27.66479]
[1641463416476,31.66479,148.0,147.91,21.05291906]
[1641463416477,27.66479,148.0,147.91,21.05291906]
[1641463416676,27.66479,148.0,147.91,27.80192358]
[1641463416876,27.66479,148.0,147.89,10.74991563]
[1641463417076,45.04630064,148.0,147.91,44.71770906]
[1641463418276,27.66479,148.0,147.91,44.71770906]
[1641463418477,27.66479,148.0,147.91,27.66479]
[1641463419477,27.66479,148.0,147.92,1.36724101]
[1641463419478,15.67125217,147.99,147.92,1.36724101]
[1641463421878,15.67125217,148.02,147.92,22.51744679]
[1641463423479,15.67125217,148.02,147.92,26.51744679]
[1641463423779,15.67125217,148.02,147.93,4.0]
[1641463423979,15.67125217,148.02,147.92,22.51744679]
[1641463424579,15.67125217,148.02,147.93,14.32214292]
[1641463424981,19.67125217,148.02,147.93,14.32214292]
[1641463425582,15.67125217,148.02,147.92,22.51744679]
[1641463425981,19.67125217,148.02,147.92,22.51744679]
[1641463426184,15.67125217,148.02,147.92,22.51744679]
[1641463426481,15.67125217,148.02,147.95,4.77249315]
[1641463426682,4.0,147.99,147.92,22.51744679]
[1641463427081,4.0,147.98,147.92,22.51744679]
[1641463427281,4.0,147.98,147.92,15.68938393]
[1641463427484,7.40609804,147.98,147.92,1.36724101]
[1641463427683,3.40609804,147.98,147.92,1.36724101]
[1641463427883,7.40609804,147.98,147.92,1.36724101]
[1641463428085,3.40609804,147.98,147.92,1.36724101]
[1641463428488,15.67125217,147.98,147.91,55.32958]
[1641463428684,4.0,147.97,147.88,14.32214292]
[1641463428884,15.67125217,147.98,147.88,14.32214292]
[1641463429084,19.67125217,147.98,147.88,14.32214292]
[1641463429486,4.0,147.97,147.88,14.32214292]
[1641463429686,4.0,147.97,147.86,27.66479]
[1641463430085,4.0,147.96,147.86,27.66479]
[1641463430285,4.0,147.97,147.86,27.66479]
[1641463430486,4.0,147.98,147.86,33.63379]
[1641463430685,4.0,147.97,147.86,33.63379]
[1641463431089,59.32958,147.99,147.86,33.63379]
[1641463431585,4.0,147.97,147.86,33.63379]
[1641463431787,4.0,147.96,147.86,33.63379]
[1641463432187,4.0,147.95,147.86,33.63379]
[1641463432387,55.32958,147.99,147.87,22.51754558]
[1641463432388,4.0,147.96,147.87,22.51754558]
[1641463432588,4.0,147.97,147.87,22.51754558]
[1641463432988,53.11381327,147.98,147.87,22.51754558]
[1641463433189,53.11381327,147.98,147.89,27.66479]
[1641463433788,3.40682512,147.96,147.89,27.66479]
[1641463433988,40.84631633,147.96,147.89,27.66479]
[1641463434189,44.84631633,147.96,147.87,1.36711983]
[1641463434388,40.84631633,147.96,147.87,1.36711983]
[1641463434989,3.40682512,147.95,147.87,22.51674961]
[1641463436193,57.11381327,147.98,147.88,14.32214292]
[1641463436789,3.40682512,147.97,147.88,14.32214292]
[1641463437191,4.0,147.96,147.88,14.32214292]
[1641463437398,4.0,147.95,147.88,14.32214292]
[1641463437597,4.0,147.92,147.88,14.32214292]
[1641463437998,4.0,147.92,147.78,91.06085002]
[1641463437999,77.57252512,147.97,147.81,10.24]
[1641463438196,4.0,147.87,147.77,6.75561561]
[1641463438497,4.0,147.89,147.77,6.75561561]
[1641463438696,4.0,147.89,147.81,38.19892346]
[1641463439296,27.66479,147.88,147.81,38.19892346]
[1641463439495,27.66479,147.88,147.79,6.82761015]
[1641463439696,27.66479,147.88,147.77,16.63561561]
[1641463440197,31.66479,147.88,147.77,16.63561561]
[1641463440395,27.66479,147.88,147.77,16.63561561]
[1641463440598,4.0,147.86,147.77,16.63561561]
[1641463440798,4.0,147.87,147.77,16.63561561]
[1641463440998,4.0,147.87,147.77,9.88]
[1641463441198,27.66479,147.83,147.73,64.15765634]
[1641463441897,27.66479,147.83,147.73,6.75721333]
[1641463445499,4.0,147.8,147.72,73.23687999]
[1641463445702,27.66479,147.83,147.72,57.40044301]
[1641463445898,4.0,147.79,147.71,57.40044301]
[1641463446200,4.0,147.76,147.71,57.40044301]
[1641463446399,4.0,147.74,147.71,57.40044301]
[1641463446598,4.0,147.75,147.66,57.40044301]
[1641463447001,4.0,147.76,147.66,57.40044301]
[1641463447200,27.66479,147.75,147.66,85.06523301]
[1641463448000,27.66479,147.75,147.66,27.66479]
[1641463448201,27.66479,147.77,147.66,27.66479]
[1641463448403,27.66479,147.77,147.66,34.75279]
[1641463448901,27.66479,147.77,147.67,64.16062553]
[1641463450202,27.66479,147.77,147.67,57.40044301]
[1641463450203,4.0,147.76,147.67,57.40044301]
[1641463450603,4.0,147.74,147.67,57.40044301]
[1641463450803,4.0,147.75,147.67,57.40044301]
[1641463451003,4.0,147.76,147.65,67.60044301]
[1641463451305,31.66479,147.74,147.65,67.60044301]
[1641463451505,27.66479,147.74,147.65,67.60044301]
[1641463451704,31.66479,147.74,147.65,67.60044301]
[1641463451904,27.66479,147.74,147.65,10.2]
[1641463452104,22.31959147,147.74,147.65,10.2]
[1641463454006,34.42771564,147.77,147.65,14.2]
[1641463454206,27.66479,147.77,147.65,20.96109665]
[1641463454407,27.66479,147.77,147.65,16.96109665]
[1641463455308,27.66479,147.77,147.67,27.66479]
[1641463455509,27.66479,147.77,147.67,91.97323301]
[1641463456007,62.4596,147.79,147.67,91.97323301]
[1641463456209,62.4596,147.79,147.67,95.97323301]
[1641463456410,62.4596,147.79,147.69,57.40044301]
[1641463457509,62.4596,147.79,147.7,85.06523301]
[1641463457712,27.66479,147.84,147.72,4.0]
[1641463458113,27.66479,147.84,147.76,4.0]
[1641463458412,4.0,147.9,147.78,6.75515925]
[1641463458613,4.0,147.89,147.77,6.75561561]
[1641463459312,4.0,147.88,147.77,6.75561561]
[1641463459512,4.0,147.87,147.77,6.75561561]
[1641463459714,4.0,147.87,147.77,13.57169426]
[1641463459912,4.0,147.87,147.81,38.21920805]
[1641463460515,31.66479,147.89,147.81,38.21920805]
[1641463460914,31.66479,147.89,147.79,38.21920805]
[1641463461114,27.66479,147.89,147.79,38.21920805]
[1641463461515,31.66479,147.89,147.8,38.21920805]
[1641463461716,27.66479,147.89,147.8,38.21920805]
[1641463463216,63.1851,147.9,147.8,38.21920805]
[1641463463617,63.1851,147.9,147.82,27.66479]
[1641463463818,12.29113072,147.88,147.82,27.66479]
[1641463464819,12.29113072,147.93,147.83,6.81607865]
[1641463466619,12.29113072,147.93,147.85,4.0]
[1641463467320,66.5326,147.94,147.85,4.0]
[1641463467521,66.5326,147.94,147.85,6.81607865]
[1641463467722,66.5326,147.94,147.86,27.66479]
[1641463468022,27.66479,147.96,147.86,27.66479]
[1641463468622,27.66479,147.96,147.88,14.32545896]
[1641463469223,4.0,147.95,147.88,14.32545896]
[1641463469426,10.75515925,147.94,147.88,14.32545896]
[1641463469723,27.66479,147.92,147.86,14.32545896]
[1641463470525,27.66479,147.92,147.84,6.81607865]
[1641463470724,12.28861212,147.91,147.83,21.14153761]
[1641463471524,27.66479,147.92,147.83,21.14153761]
[1641463471725,27.66479,147.92,147.85,14.32545896]
[1641463473131,27.66479,147.92,147.84,14.32545896]
[1641463473931,27.66479,147.92,147.85,14.32545896]
[1641463474433,10.75949709,147.86,147.77,57.40044301]
[1641463474631,4.0,147.85,147.77,57.40044301]
[1641463474834,6.75949709,147.86,147.76,57.40044301]
[1641463475135,10.75949709,147.86,147.76,57.40044301]
[1641463475335,4.0,147.85,147.76,57.40044301]
[1641463475835,27.66479,147.82,147.76,57.40044301]
[1641463476236,27.66479,147.82,147.74,27.66479]
[1641463477539,27.66479,147.82,147.76,4.0]
[1641463477739,27.66479,147.84,147.77,4.0]
[1641463477939,27.66479,147.84,147.77,27.66479]
[1641463478941,27.66479,147.84,147.78,1.36126561]
[1641463481250,64.4612,147.85,147.81,4.0]
[1641463481451,27.66479,147.87,147.81,4.0]
[1641463481845,27.66479,147.87,147.79,4.0]
[1641463482046,27.66479,147.87,147.8,27.66479]
[1641463482349,27.66479,147.9,147.82,1.36126561]
[1641463482946,27.66479,147.9,147.8,31.66479]
[1641463482947,3.41983426,147.89,147.81,1.36126561]
[1641463483147,3.41983426,147.89,147.81,5.36126561]
[1641463484148,3.41983426,147.89,147.83,27.66479]
[1641463484850,3.41983426,147.89,147.83,31.66479]
[1641463485048,67.5148,147.91,147.85,4.0]
[1641463485249,67.5148,147.91,147.86,4.0]
[1641463485449,27.66479,147.92,147.84,1.36126561]
[1641463485649,27.66479,147.92,147.84,5.36126561]
[1641463485849,27.66479,147.92,147.86,1.36126561]
[1641463486854,3.41820962,147.91,147.84,1.36126561]
[1641463487753,27.66479,147.96,147.86,6.75105485]
[1641463487954,27.66479,147.96,147.91,27.66479]
[1641463488153,57.40044301,147.98,147.91,31.66479]
[1641463488556,51.08044301,147.98,147.91,31.66479]
[1641463488955,68.3766,147.99,147.95,4.77635705]
[1641463489155,27.66479,148.01,147.95,4.77635705]
[1641463489958,27.66479,147.98,147.95,4.77635705]
[1641463490165,27.66479,147.98,147.96,4.77635705]
[1641463490359,34.41812446,147.98,147.85,27.66479]
[1641463490564,4.0,147.96,147.85,27.66479]
[1641463491160,72.13107484,147.97,147.85,27.66479]
[1641463491560,76.13107484,147.97,147.85,27.66479]
[1641463491960,27.66479,147.93,147.85,27.66479]
[1641463492161,27.66479,147.93,147.83,11.2356514]
[1641463493765,27.66479,147.93,147.82,21.4156514]
[1641463493963,27.66479,147.9,147.82,21.4156514]
[1641463494363,31.66479,147.9,147.82,21.4156514]
[1641463494567,4.0,147.89,147.82,21.4156514]
[1641463494764,6.75766996,147.89,147.82,66.42983987]
[1641463494965,6.75766996,147.89,147.82,56.24983987]
[1641463495165,10.75766996,147.89,147.82,56.24983987]
[1641463495367,6.75766996,147.89,147.82,56.24983987]
[1641463495568,4.0,147.86,147.77,38.21009391]
[1641463495764,8.854,147.86,147.77,38.21009391]
[1641463495965,27.66479,147.83,147.77,38.21009391]
[1641463496567,27.66479,147.83,147.76,56.24983987]
[1641463499970,27.66479,147.8,147.76,56.24983987]
[1641463500571,31.66479,147.8,147.76,56.24983987]
[1641463501374,31.66479,147.8,147.73,38.21009391]
[1641463501571,4.0,147.79,147.73,38.21009391]
[1641463501974,27.66479,147.8,147.73,38.21009391]
[1641463502172,27.66479,147.8,147.72,18.03974596]
[1641463502173,27.66479,147.8,147.72,42.65009391]
[1641463502875,27.66479,147.8,147.73,38.21009391]
[1641463504374,27.66479,147.8,147.76,14.33805434]
[1641463505175,27.66479,147.8,147.73,38.21009391]
[1641463505375,4.0,147.74,147.64,95.82755063]
[1641463505574,4.0,147.7,147.64,95.82755063]
[1641463505779,4.0,147.71,147.64,91.33545411]
[1641463506075,55.32958,147.65,147.64,73.33545411]
[1641463506275,59.32958,147.65,147.64,73.33545411]
[1641463506778,55.32958,147.65,147.64,73.33545411]
[1641463506976,55.32958,147.65,147.6,57.38088131]
[1641463507375,59.32958,147.65,147.6,57.38088131]
[1641463507776,4.0,147.61,147.6,57.38088131]
[1641463507976,10.214,147.61,147.6,57.38088131]
[1641463508176,44.64949991,147.61,147.53,15.81234576]
[1641463508377,4.0,147.59,147.52,3.82708505]
[1641463508576,4.0,147.59,147.49,135.48236091]
[1641463508778,38.43549991,147.61,147.49,135.48236091]
[1641463509076,34.43549991,147.61,147.49,135.48236091]
[1641463509275,38.43549991,147.61,147.47,31.49187505]
[1641463509678,34.43549991,147.61,147.47,31.49187505]
[1641463509878,34.43549991,147.61,147.49,4.0]
[1641463510079,27.66479,147.61,147.52,27.66479]
[1641463510982,27.66479,147.61,147.55,4.0]
[1641463511179,27.66479,147.65,147.55,4.0]
[1641463511382,27.66479,147.65,147.54,4.0]
[1641463511580,27.66479,147.65,147.55,4.0]
[1641463511981,27.66479,147.65,147.61,4.0]
[1641463512181,4.0,147.66,147.6,27.66479]
[1641463512381,4.0,147.64,147.51,68.5061]
[1641463512582,6.76841856,147.65,147.51,68.5061]
[1641463512583,6.76979318,147.62,147.51,4.0]
[1641463512784,6.76979318,147.62,147.52,119.67001515]
[1641463513083,4.0,147.65,147.52,119.67001515]
[1641463513486,4.0,147.62,147.48,68.5577]
[1641463513684,4.0,147.63,147.48,68.5577]
[1641463513884,4.0,147.63,147.49,6.7688767]
[1641463514085,27.66479,147.61,147.52,27.66479]
[1641463515183,27.66479,147.63,147.52,27.66479]
[1641463515184,4.0,147.64,147.52,27.66479]
[1641463515385,4.0,147.63,147.52,27.66479]
[1641463515585,70.9079,147.65,147.52,27.66479]
[1641463515785,66.9079,147.65,147.52,27.66479]
[1641463516185,66.9079,147.65,147.59,27.66479]
[1641463516386,4.0,147.66,147.59,27.66479]
[1641463516586,27.66479,147.67,147.59,27.66479]
[1641463520490,31.66479,147.67,147.55,66.1892]
[1641463520890,4.0,147.65,147.55,66.1892]
[1641463521090,27.66479,147.67,147.56,11.20950286]
[1641463521292,31.66479,147.67,147.56,11.20950286]
[1641463521492,4.0,147.64,147.56,11.20950286]
[1641463521990,6.76933491,147.65,147.53,11.20950286]
[1641463522192,4.0,147.61,147.53,11.20950286]
[1641463522393,4.0,147.6,147.53,11.20950286]
[1641463522590,4.0,147.61,147.53,11.20950286]
[1641463523491,6.77025151,147.63,147.53,11.20950286]
[1641463523691,4.0,147.62,147.53,11.20950286]
[1641463523892,6.77025151,147.63,147.53,11.20950286]
[1641463524191,27.66479,147.61,147.54,27.66479]
[1641463525392,32.45179,147.61,147.54,27.66479]
[1641463526292,27.66479,147.61,147.55,6.77480986]
[1641463526895,27.66479,147.64,147.55,6.77480986]
[1641463527096,67.2407,147.66,147.55,6.77480986]
[1641463527897,67.2407,147.66,147.58,38.28538071]
[1641463528097,4.0,147.67,147.58,38.28538071]
[1641463528296,4.0,147.66,147.58,38.28538071]
[1641463528497,27.66479,147.67,147.58,38.28538071]
[1641463528897,34.43297951,147.67,147.58,38.28538071]
[1641463529497,3.44024306,147.66,147.57,38.28538071]
[1641463531102,3.44024306,147.66,147.57,39.62977936]
[1641463531402,7.44024306,147.66,147.57,8.11920851]
[1641463531601,4.0,147.63,147.57,8.11920851]
[1641463531803,10.76933491,147.65,147.57,8.11920851]
[1641463532003,14.20957797,147.65,147.57,8.11920851]
[1641463532209,10.20957797,147.65,147.57,8.11920851]
[1641463532407,27.66479,147.63,147.57,8.11920851]
[1641463532909,27.66479,147.63,147.55,8.11920851]
[1641463533409,4.0,147.6,147.55,8.11920851]
[1641463534411,27.66479,147.6,147.55,8.11920851]
[1641463535214,27.66479,147.63,147.56,4.0]
[1641463535415,66.81,147.64,147.56,4.0]
[1641463535615,66.81,147.64,147.55,8.11920851]
[1641463536315,3.44121278,147.62,147.57,15.70060578]
[1641463537319,3.44121278,147.63,147.57,14.35620713]
[1641463537516,3.44121278,147.63,147.59,14.35620713]
[1641463538218,27.66479,147.67,147.59,14.35620713]
[1641463538418,27.66479,147.67,147.61,14.35620713]
[1641463538618,96.27139,147.7,147.61,14.35620713]
[1641463539221,3.43921168,147.69,147.63,14.35620713]
[1641463540623,31.10400168,147.69,147.63,14.35620713]
[1641463540823,31.10400168,147.69,147.65,14.35620713]
[1641463541624,3.43921168,147.68,147.63,14.35620713]
[1641463542424,6.76818951,147.67,147.63,14.35620713]
[1641463542924,6.76818951,147.67,147.62,14.35620713]
[1641463543125,10.76818951,147.67,147.62,14.35620713]
[1641463543326,6.76818951,147.67,147.62,14.35620713]
[1641463543726,3.43921168,147.66,147.6,14.35620713]
[1641463544126,7.43921168,147.66,147.6,14.35620713]
[1641463544326,3.43921168,147.66,147.6,14.35620713]
[1641463544528,27.66479,147.63,147.6,14.35620713]
[1641463545127,31.66479,147.63,147.6,14.35620713]
[1641463545326,27.66479,147.63,147.6,14.35620713]
[1641463545527,4.0,147.61,147.58,14.35620713]
[1641463545726,4.0,147.6,147.58,14.35620713]
[1641463545927,4.0,147.6,147.55,46.40458922]
[1641463546326,4.0,147.58,147.55,46.40458922]
[1641463546527,31.66479,147.57,147.55,38.28538071]
[1641463546729,27.66479,147.57,147.51,38.28538071]
[1641463547529,4.0,147.54,147.51,38.28538071]
[1641463547729,15.95214984,147.54,147.51,38.28538071]
[1641463547931,4.0,147.53,147.51,38.28538071]
[1641463548128,4.0,147.53,147.49,8.11555163]
[1641463548331,4.0,147.52,147.49,8.11555163]
[1641463548532,4.0,147.51,147.49,4.06665163]
[1641463548929,27.66479,147.52,147.43,57.4134928]
[1641463549129,4.0,147.51,147.43,49.51876511]
[1641463550132,4.0,147.51,147.43,11.21076808]
[1641463550430,31.66479,147.52,147.4,27.66479]
[1641463550630,55.32958,147.52,147.44,4.0]
[1641463550832,11.95214984,147.54,147.44,4.0]
[1641463550833,6.77414984,147.54,147.44,4.0]
[1641463551132,4.78892748,147.49,147.44,4.0]
[1641463551531,4.78892748,147.49,147.4,27.66479]
[1641463552132,4.78892748,147.49,147.42,4.0]
[1641463552333,4.78892748,147.52,147.42,4.0]
[1641463552735,27.66479,147.51,147.42,4.0]
[1641463552932,27.66479,147.51,147.41,61.4134928]
[1641463553333,27.66479,147.51,147.41,57.4134928]
[1641463553532,31.66479,147.51,147.41,57.4134928]
[1641463553733,4.0,147.48,147.41,57.4134928]
[1641463553932,4.0,147.47,147.41,57.4134928]
[1641463554332,4.0,147.46,147.41,57.4134928]
[1641463554534,6.77736361,147.47,147.41,57.4134928]
[1641463554733,27.66479,147.43,147.41,57.4134928]
[1641463555335,31.66479,147.43,147.36,11.21076808]
[1641463555734,4.0,147.42,147.36,11.21076808]
[1641463555932,27.66479,147.43,147.36,11.21076808]
[1641463556734,31.66479,147.43,147.34,11.21076808]
[1641463557336,27.66479,147.43,147.34,11.21076808]
[1641463557536,4.0,147.42,147.34,11.21076808]
[1641463557735,4.0,147.41,147.34,11.21076808]
[1641463557938,6.78058042,147.4,147.34,11.21076808]
[1641463558738,27.66479,147.39,147.34,11.21076808]
[1641463559439,4.0,147.38,147.34,11.21076808]
[1641463559839,31.66479,147.39,147.34,11.21076808]
[1641463560441,31.66479,147.39,147.31,84.41236763]
[1641463560741,59.32958,147.39,147.31,84.41236763]
[1641463561142,59.32958,147.39,147.29,112.07715763]
[1641463561543,55.32958,147.39,147.29,112.07715763]
[1641463562441,59.32958,147.39,147.29,112.07715763]
[1641463562742,31.66479,147.36,147.29,112.07715763]
[1641463562944,4.0,147.35,147.29,84.41236763]
[1641463563143,4.0,147.3,147.29,84.41236763]
[1641463563343,4.0,147.31,147.29,53.22757763]
[1641463563543,6.78587181,147.3,147.25,116.12668166]
[1641463563743,4.0,147.29,147.25,116.12668166]
[1641463564345,4.0,147.29,147.23,57.52815808]
[1641463564544,6.78587181,147.3,147.23,57.52815808]
[1641463564744,34.45181321,147.26,147.23,57.52815808]
[1641463564944,38.45181321,147.26,147.23,57.52815808]
[1641463565345,38.45181321,147.26,147.19,95.68915467]
[1641463565546,4.0,147.2,147.19,95.68915467]
[1641463565745,4.0,147.2,147.17,15.78937597]
[1641463565944,4.0,147.19,147.17,15.78937597]
[1641463566245,6.79047975,147.2,147.17,12.84937597]
[1641463566246,4.0,147.18,147.17,12.84937597]
[1641463566648,10.79186335,147.18,147.17,12.84937597]
[1641463566848,38.45665335,147.18,147.12,95.68915467]
[1641463567051,4.0,147.17,147.08,64.4545]
[1641463567452,4.0,147.15,147.08,64.4545]
[1641463567650,4.0,147.13,147.08,64.4545]
[1641463567850,4.0,147.14,147.07,27.66479]
[1641463568052,4.0,147.15,147.07,27.66479]
[1641463568252,6.79555571,147.08,147.06,95.68915467]
[1641463568457,4.0,147.1,147.03,95.68915467]
[1641463568652,6.79763442,147.07,147.03,95.68915467]
[1641463568852,27.66479,147.05,147.03,95.68915467]
[1641463569051,27.66479,147.05,147.03,94.70915467]
[1641463569453,27.66479,147.05,147.03,88.74915467]
[1641463569751,27.66479,147.05,146.98,38.42793016]
[1641463570855,27.66479,147.05,146.99,38.42793016]
[1641463571953,27.66479,147.05,147.0,38.42793016]
[1641463572652,32.45371748,147.07,147.0,38.42793016]
[1641463572852,4.78892748,147.07,147.0,66.09272016]
[1641463573053,4.78892748,147.08,147.02,4.0]
[1641463573354,34.45919141,147.1,147.05,38.42793016]
[1641463573557,6.79624847,147.06,147.05,38.42793016]
[1641463574561,6.79624847,147.06,147.0,38.42793016]
[1641463574759,27.66479,147.05,147.0,38.42793016]
[1641463575961,27.66479,147.05,146.97,4.0]
[1641463576160,27.66479,147.05,146.96,4.0]
[1641463576361,27.66479,147.05,146.98,4.0]
[1641463576763,34.45942224,147.1,147.0,27.66479]
[1641463576963,34.45942224,147.1,147.03,4.0]
[1641463577262,34.45942224,147.1,147.0,31.66479]
[1641463577463,34.45942224,147.1,147.0,27.66479]
[1641463577662,34.45942224,147.1,147.03,4.0]
[1641463578062,34.45942224,147.1,147.0,27.66479]
[1641463578463,34.45942224,147.1,147.02,4.0]
[1641463578662,6.79347826,147.12,147.0,31.66479]
[1641463578864,6.79347826,147.12,147.04,27.66479]
[1641463579062,6.79347826,147.12,147.09,4.0]
[1641463580063,27.66479,147.18,147.1,4.0]
[1641463580265,6.79163271,147.16,147.1,4.0]
[1641463580665,6.79163271,147.16,147.09,4.0]
[1641463581471,6.79163271,147.16,147.11,4.0]
[1641463581667,55.32958,147.18,147.1,4.0]
[1641463581868,6.79186335,147.16,147.1,4.0]
[1641463582869,27.66479,147.15,147.1,4.0]
[1641463584071,27.66479,147.15,147.11,4.0]
[1641463584271,34.45550031,147.18,147.12,4.0]
[1641463584473,6.79071031,147.18,147.13,4.0]
[1641463584674,75.76043993,147.25,147.16,4.0]
[1641463584871,6.7884054,147.23,147.15,4.0]
[1641463585072,6.7884054,147.23,147.14,31.66479]
[1641463585273,6.7884054,147.23,147.15,4.0]
[1641463585474,6.7884054,147.23,147.14,4.0]
[1641463585674,6.7884054,147.23,147.13,68.862]
[1641463586075,10.7884054,147.23,147.13,68.862]
[1641463586776,6.79001867,147.2,147.13,68.862]
[1641463586977,27.66479,147.18,147.13,68.862]
[1641463587979,6.79001867,147.2,147.14,4.0]